Cogmind - Beta 13 *** ADVENTURER MODE // 2024.05.15 @ 07:48:02 // Winter2022/Polymind Player: SlyFyer Result: Destroyed by G-47 Trooper with Particle Gun Performance ------------- Evolutions (3) 1500 Regions Visited (5) 1000 Robots Destroyed (70) 350 Value Destroyed (1563) 1563 Prototype IDs (0) 0 Alien Tech Used (0) 0 Bonus (2828) 2828 TOTAL SCORE: 6991 Bonus ------- Polymind Skill 2446 Pacifist 200 High Alert Combat Kills 43 Follower Combat Kills 139 Cogmind --------- Core Integrity 0/700 Matter 0/0 Energy 99/100 System Corruption 8% Temperature Cool (9) Movement Core (50) Location -7/Factory Parts ------- > --- POWER (1) -------- (None) > --- PROPULSION (2) --- (None) > --- UTILITY (3) ------ (None) > --- WEAPON (2) ------- (None) > --- INVENTORY (0) ---- (None) Peak State ------------ > --- POWER ------------ Improved Deuterium Engine > --- PROPULSION ------- Light Treads Light Treads > --- UTILITY ---------- Improved Heat Sink Improved Heat Sink Improved Light Armor Plating > --- WEAPON ----------- Gatling Laser Flak Gun > --- INVENTORY -------- (None) [Rating: 23] Favorites ----------- Power Improved Ion Engine Engine Improved Ion Engine Power Core Light Nuclear Core Propulsion Light Treads Treads Light Treads Wheel Compact Wheel Hover Unit Hover Unit Flight Unit VTOL Module Utility Heat Sink Device Heat Sink Storage Small Storage Unit Processor Visual Processing Unit Protection Light Armor Plating Weapon Heavy Assault Rifle Energy Gun Beam Rifle Ballistic Gun Heavy Assault Rifle Build | -11 -10 -9 -9 -9 -7 ------- Run | Yrd Mat Mat Sto Rec Fac Slots Evolved . | . . . . . . Power . | . . . . . . Propulsion . | . . . . . . Utility . | . . . . . . Weapon . | . . . . . . Parts Attached . | . . . . . . Power . | . . . . . . Engine . | . . . . . . Core . | . . . . . . Reactor . | . . . . . . Propulsion . | . . . . . . Treads . | . . . . . . Leg . | . . . . . . Wheel . | . . . . . . Hover . | . . . . . . Flight . | . . . . . . Utility . | . . . . . . Device . | . . . . . . Storage . | . . . . . . Processor . | . . . . . . Hackware . | . . . . . . Protection . | . . . . . . Artifact . | . . . . . . Weapon . | . . . . . . Energy Gun . | . . . . . . Energy Cannon . | . . . . . . Ballistic Gun . | . . . . . . Ballistic Cannon . | . . . . . . Launcher . | . . . . . . Special Weapon . | . . . . . . Impact Weapon . | . . . . . . Slashing Weapon . | . . . . . . Piercing Weapon . | . . . . . . Special Melee Weapon . | . . . . . . Unidentified Prototypes . | . . . . . . Parts Lost 13 | . . 4 4 . 5 Power 3 | . . 1 1 . 1 Propulsion 3 | . . . 1 . 2 Utility 5 | . . 3 1 . 1 Weapon 2 | . . . 1 . 1 Highest Loss Streak 4 | . . 2 4 . 3 To Critical Strikes . | . . . . . . Average Slot Usage (%) 91 | . 100 90 98 90 88 Engine 12 | . 18 10 11 12 13 Treads 20 | . . 23 25 23 14 Wheel 4 | . 25 . . 2 12 Device 20 | . 18 24 25 19 16 Storage 2 | . 12 . . 1 6 Protection 8 | . . 4 11 11 6 Energy Gun 8 | . . 11 11 7 6 Ballistic Gun 10 | . . 11 12 11 7 Naked Turns 53 | . . 3 1 5 44 Heaviest Build 23 | 9 9 18 18 18 23 Greatest Support 40 | 32 32 40 40 40 40 Greatest Overweight (x) 2 | . . . . . 2 Average Overweight (x) . | . . . . . . Largest Inventory Capacity 4 | 4 4 1 1 4 4 Average Capacity 1 | 3 2 . . 1 1 Most Carried 4 | . . 1 1 1 4 Average Carried . | . . . . . . Final Capacity 4 | 4 . 1 1 4 . Final Carried 1 | . . 1 . 1 . Class Distribution -------------------- 82% | Sentry 12% | Recycler Dominant Class ---------------- Recycler | -10/Materials Sentry | -9/Materials Sentry | -9/Storage Sentry | -9/Recycling Sentry | -7/Factory Resources | -11 -10 -9 -9 -9 -7 ----------- Run | Yrd Mat Mat Sto Rec Fac Matter Collected 549 | . . 229 117 102 101 Remotely . | . . . . . . Salvage Created 2748 | . . 1147 735 572 294 Parts 126 | . . 69 34 18 5 Haulers Intercepted 3 | . . 3 . . . Recyclers Shooed 4 | . . 1 2 1 . Parts Field Recycled . | . . . . . . Retrieved Matter . | . . . . . . Parts Self-Destructed . | . . . . . . Prevented . | . . . . . . Kills | -11 -10 -9 -9 -9 -7 ------- Run | Yrd Mat Mat Sto Rec Fac Combat Hostiles Destroyed 42 | . . 20 14 3 5 Guns 41 | . . 19 14 3 5 Classes Destroyed 13 | . . 10 1 1 1 Worker 5 | . . 2 2 . 1 Builder 6 | . . 4 1 1 . Tunneler 1 | . . 1 . . . Hauler 3 | . . 3 . . . Recycler 9 | . . 1 2 5 1 Operator 1 | . . . 1 . . Watcher 3 | . . 3 . . . Swarmer 12 | . . 4 7 . 1 Grunt 15 | . . 9 4 . 2 Brawler 2 | . . 1 . 1 . Duelist 3 | . . . . 2 1 Sentry 9 | . . 6 3 . . Programmer 1 | . . . . . 1 Best Kill Streak 5 | . . 5 5 4 3 Combat Bots Only 5 | . . 5 3 3 2 Max Kills in Single Turn 2 | . . 2 2 1 1 Gunslinging 1 | . . . 1 . . Exploded . | . . . . . . Melee . | . . . . . . Uniques/NPCs Destroyed . | . . . . . . Combat | -11 -10 -9 -9 -9 -7 -------- Run | Yrd Mat Mat Sto Rec Fac Hostile Shots Fired 396 | . 29 120 87 8 152 Missed 113 | . 17 25 17 2 52 Damage Taken 3081 | . 87 865 646 156 1327 Core 1015 | . 35 146 98 26 710 Absorbed by Shields . | . . . . . . Ignored by Resistances 868 | . 28 264 193 42 341 Core Remaining (%) 72 | 100 86 . . 32 . Volleys Fired 190 | . . 89 48 34 19 Largest 2 | . . 2 2 2 2 Hottest 108 | . . 79 79 79 108 Shots Fired 362 | . . 178 86 60 38 Gun 362 | . . 178 86 60 38 Cannon . | . . . . . . Launcher . | . . . . . . Special . | . . . . . . Kinetic 190 | . . 89 48 34 19 Thermal 172 | . . 89 38 26 19 Explosive . | . . . . . . Electromagnetic . | . . . . . . Robot Hit Streak 26 | . . 19 21 18 26 Robot Miss Streak 5 | . . 2 2 1 5 Penetration Max . | . . . . . . Secondary Targets 7 | . . 5 2 . . Max Gunslinging Chain 1 | . . 1 1 . . Shots Hit Robots 273 | . . 142 67 32 32 Core Hits 115 | . . 48 27 11 29 Critical Kills . | . . . . . . Critical Parts Destroyed 1 | . . . 1 . . Critical Strikes 10 | . . 5 3 2 . Burn 9 | . . 5 2 2 . Destroy 1 | . . . 1 . . Melee Attacks . | . . . . . . Impact . | . . . . . . Slashing . | . . . . . . Piercing . | . . . . . . Sneak Attacks . | . . . . . . Combat Hostiles . | . . . . . . Follow-up Attacks . | . . . . . . Damage Inflicted 4641 | . . 2217 1069 521 834 Guns 4638 | . . 2217 1069 521 831 Cannons . | . . . . . . Explosions . | . . . . . . Melee . | . . . . . . Ramming 3 | . . . . . 3 Kinetic 2351 | . . 1132 569 294 356 Thermal 2287 | . . 1085 500 227 475 Explosive . | . . . . . . Electromagnetic . | . . . . . . Impact . | . . . . . . Slashing . | . . . . . . Piercing . | . . . . . . Highest Corruption 6 | . . . . . 6 Average Corruption 3 | . . . . . 3 Corruption Purged . | . . . . . . Corruption Blocked . | . . . . . . Effects 12 | . . . . . 12 Message Errors 2 | . . . . . 2 Matter Fused 4 | . . . . . 4 Heat Flow Errors 1 | . . . . . 1 Energy Discharges 3 | . . . . . 3 Data Loss (major) 1 | . . . . . 1 Misfires 1 | . . . . . 1 Overload Shots . | . . . . . . Overflow Damage . | . . . . . . Projectiles . | . . . . . . Explosions . | . . . . . . Melee . | . . . . . . Knockbacks . | . . . . . . Impact . | . . . . . . Kinetic . | . . . . . . Secondary . | . . . . . . Self-Inflicted Damage 151 | . . . . . 151 Shots 2 | . . . . . 2 Rammed 2 | . . 1 . . 1 Targets Rammed 2 | . . 1 . . 1 Kicked . | . . . . . . Crushed . | . . . . . . Highest Temperature 321 | . 5 224 40 . 321 Average Temperature 53 | . 2 43 14 . 99 Received Heat Transfer 1047 | . 21 414 327 . 285 Effects 2 | . . 2 . . . Interference 2 | . . 2 . . . Siege Activations . | . . . . . . Robots Corrupted . | . . . . . . Combat Hostiles . | . . . . . . Parts Fried . | . . . . . . Impact Corruptions . | . . . . . . Robots Melted 1 | . . 1 . . . Combat Hostiles 1 | . . 1 . . . Parts Melted 9 | . . 7 2 . . Heat Transferred 6179 | . . 3071 1406 703 999 Parts Sabotaged . | . . . . . . Parts Stolen . | . . . . . . Parts Stripped . | . . . . . . Power Chain Reactions . | . . . . . . Alert | -11 -10 -9 -9 -9 -7 ------- Run | Yrd Mat Mat Sto Rec Fac Peak Influence 512 | . 60 311 512 102 228 Initial 102 | . . 21 100 102 7 Average 110 | . 11 173 274 51 74 Maximum Alert Level 2 | . . 1 2 . 1 Low Security (%) 86 | 100 100 70 46 100 98 Level 1 10 | . . 29 22 . 1 Level 2 3 | . . . 30 . . Level 3 . | . . . . . . Level 4 . | . . . . . . Level 5 . | . . . . . . High Security . | . . . . . . Max Security . | . . . . . . Squads Dispatched 5 | . . 1 . . 4 Investigation 3 | . . 1 . . 2 Extermination 1 | . . . . . 1 Reinforcement . | . . . . . . Assault . | . . . . . . Garrison 1 | . . . . . 1 Intercept . | . . . . . . Searches Triggered . | . . . . . . Construction Impeded . | . . . . . . Haulers Reinforced . | . . . . . . Active Scanning Responses . | . . . . . . Cargo Convoy Interrupts 1 | . . . . . 1 Stealth | -11 -10 -9 -9 -9 -7 --------- Run | Yrd Mat Mat Sto Rec Fac Distress Signals 2 | . . 2 . . . Communications Jammed . | . . . . . . Distress Signals . | . . . . . . Times Spotted 99 | . 8 34 25 3 29 Peak Tracking Total 11 | . 8 6 9 3 11 Tactical Retreats 6 | . . 1 2 . 3 Traps | -11 -10 -9 -9 -9 -7 ------- Run | Yrd Mat Mat Sto Rec Fac Traps Triggered 6 | . . 1 . . 5 Indirectly . | . . . . . . Trap Hack Attempts . | . . . . . . Triggered . | . . . . . . Disarmed . | . . . . . . Reprogrammed . | . . . . . . Reused . | . . . . . . Traps Extracted . | . . . . . . Installed . | . . . . . . Triggered . | . . . . . . Machines | -11 -10 -9 -9 -9 -7 ---------- Run | Yrd Mat Mat Sto Rec Fac Machines Disabled 3 | . . . . . 3 Max in Single Turn 2 | . . . . . 2 Machines Repaired . | . . . . . . Machines Dismantled . | . . . . . . Machines Sabotaged . | . . . . . . Overloaded Fab Kills . | . . . . . . Hacking | -11 -10 -9 -9 -9 -7 --------- Run | Yrd Mat Mat Sto Rec Fac Machines Accessed 4 | . . 1 1 . 2 Terminals 2 | . . 1 1 . . Fabricators 1 | . . . . . 1 Repair Stations . | . . . . . . Recycling Units . | . . . . . . Scanalyzers . | . . . . . . Garrison Access 1 | . . . . . 1 Total Hacks 9 | . . 3 3 . 3 Successful 3 | . . 1 2 . . Failed 6 | . . 2 1 . 3 Catastrophic 1 | . . 1 . . . Database Lockouts . | . . . . . . Manual 4 | . . 3 1 . . Terminals 6 | . . 3 3 . . Fabricators 1 | . . . . . 1 Repair Stations . | . . . . . . Recycling Units . | . . . . . . Scanalyzers . | . . . . . . Garrison Access 2 | . . . . . 2 Terminal Hacks 3 | . . 1 2 . . Branch Access Points 2 | . . 1 1 . . Hauler Manifests 1 | . . . 1 . . Fabricator Hacks . | . . . . . . Repair Station Hacks . | . . . . . . Recycling Unit Hacks . | . . . . . . Scanalyzer . | . . . . . . Garrison Access Hacks . | . . . . . . Unauthorized Hacks . | . . . . . . Terminals . | . . . . . . Fabricators . | . . . . . . Repair Stations . | . . . . . . Recycling Units . | . . . . . . Scanalyzers . | . . . . . . Garrison Access . | . . . . . . Data Cores Recovered 1 | . . . 1 . . Used . | . . . . . . Hacking Detections 3 | . . . 1 . 2 Full Trace Events 1 | . . . . . 1 Feedback Events . | . . . . . . Feedback Blocked . | . . . . . . Robot Schematics Acquired . | . . . . . . Robots Built . | . . . . . . Authchips . | . . . . . . Time . | . . . . . . Total Robot Build Rating . | . . . . . . Part Schematics Acquired . | . . . . . . Parts Built . | . . . . . . Authchips . | . . . . . . Time . | . . . . . . Total Part Build Rating . | . . . . . . Parts Repaired . | . . . . . . Time . | . . . . . . Parts Recycled . | . . . . . . Recycled Matter . | . . . . . . Retrieved Matter . | . . . . . . Retrieved Components . | . . . . . . Parts Scanalyzed . | . . . . . . Part Schematics Acquired . | . . . . . . Parts Damaged . | . . . . . . Bothacking | -11 -10 -9 -9 -9 -7 ------------ Run | Yrd Mat Mat Sto Rec Fac Used RIF Installer . | . . . . . . Robots Hacked 7 | . 1 2 1 1 2 Non-combat 2 | . 1 . . 1 . Combat 5 | . . 2 1 . 2 Robot Hacks Applied 11 | . 2 2 2 1 4 find_recycling 1 | . . . . 1 . map_route 1 | . 1 . . . . mark_security 1 | . 1 . . . . find_shortcuts 5 | . . 2 1 . 2 find_garrison 3 | . . . 1 . 2 Relay Couplers Released . | . . . . . . Fabnet Peak Effective % . | . . . . . . Robots Rewired 5 | . . . . 5 . Allies Hacked . | . . . . . . Hacks Repelled . | . . . . . . Allies | -11 -10 -9 -9 -9 -7 -------- Run | Yrd Mat Mat Sto Rec Fac Total Allies 5 | . . . . 5 . Largest Group 5 | . . . . 5 4 Highest-Rated Group 57 | . . . . 57 49 Highest-Rated Ally 34 | . . . . 34 34 Total Orders . | . . . . . . Ally Attacks 19 | . . . . 2 17 Total Damage 631 | . . . . 22 609 Kills 6 | . . . . 1 5 Allies Corrupted . | . . . . . . Allies Melted . | . . . . . . Intel | -11 -10 -9 -9 -9 -7 ------- Run | Yrd Mat Mat Sto Rec Fac Robot Analysis Total 5 | 1 1 1 . . 2 Derelict Logs Recovered . | . . . . . . Drone Launches . | . . . . . . Drone Recoveries . | . . . . . . Exploration | -11 -10 -9 -9 -9 -7 ------------- Run | Yrd Mat Mat Sto Rec Fac Turns Passed 3909 | 21 141 1041 407 1392 907 Spaces Moved 2512 | 26 168 545 167 820 786 Core 130 | 10 . 5 2 11 102 Treads 1624 | . . 444 165 737 278 Legs . | . . . . . . Wheels 455 | 16 93 . . 72 274 Hover 171 | . 75 96 . . . Flight 132 | . . . . . 132 Fastest Speed 32 | 50 56 50 50 50 32 Average Speed 130 | 80 80 140 158 153 104 Slowest Speed 160 | 100 100 160 160 160 160 Overloaded Moves . | . . . . . . Propulsion Burnouts . | . . . . . . Robots Hopped 3 | . . . . . 3 Cave-ins Triggered . | . . . . . . Exploration Rate (%) 39 | 3 31 49 31 97 25 Regions Visited 5 Branch Regions 2 Pre-discovered Areas . | . . . . . . Known Exits Taken 3 | . 1 1 1 . . Unknown Exits Taken 2 | 1 . . . 1 . Scrap Searched . | . . . . . . Spaces Dug . | . . . . . . Terrain Destroyed 43 | . . . . . 43 Melee . | . . . . . . Projectile . | . . . . . . AOE 43 | . . . . . 43 Terrain Rammed . | . . . . . . Walls Destroyed . | . . . . . . Machines Disabled . | . . . . . . Actions | -11 -10 -9 -9 -9 -7 --------- Run | Yrd Mat Mat Sto Rec Fac Total 2781 | 25 173 641 223 895 824 Wait 21 | . 6 6 9 . . Move 2501 | 25 167 544 166 819 780 Hop 3 | . . . . . 3 Pick Up 11 | . . 1 . . 10 Fast Attach . | . . . . . . Attach . | . . . . . . Detach . | . . . . . . Swap . | . . . . . . Drop . | . . . . . . Fire 190 | . . 89 48 34 19 Melee . | . . . . . . Ram 1 | . . . . . 1 Kick . | . . . . . . Crush 1 | . . 1 . . . Escape Stasis . | . . . . . . Rewire 43 | . . . . 42 1 Trap . | . . . . . . Miscellaneous 10 | . . . . . 10 Route ------- -11/Scrapyard -10/Materials -9/Materials (discovered 4 exits: [*Mat x2] / Min / *Sto) -9/Storage -9/Recycling -7/Factory History --------- Turn | Location | Event 3 | -11/Scrapyard | Discovered new exit (range 15) 22 | -11/Scrapyard | Entered Materials 85 | -10/Materials | Discovered new exit (range 13) 162 | -10/Materials | Identified exit to Materials 163 | -10/Materials | Entered another Materials area 647 | -9/Materials | Identified exit to Mines 647 | -9/Materials | Identified exit to Storage 745 | -9/Materials | Discovered new exit (range 3) 1161 | -9/Materials | Discovered new exit (range 13) 1204 | -9/Materials | Entered Storage 1274 | -9/Storage | Identified exit to Recycling 1543 | -9/Storage | Core integrity fell below 50% 1583 | -9/Storage | Lost 4 parts (1p1n1u1w) 1606 | -9/Storage | Used back door to open Recycling access 1611 | -9/Storage | Entered Recycling 1912 | -9/Recycling | Discovered new exit (range 15) 3003 | -9/Recycling | Entered Factory 3003 | -7/Factory | Accompanied by 4 allies 3256 | -7/Factory | P-60 Hacker assimilated allied Grenadier 2a 3257 | -7/Factory | P-60 Hacker assimilated allied Serf 2a 3332 | -7/Factory | Lost 3 parts (1p2n) 3865 | -7/Factory | Cargo convoy interrupted 3868 | -7/Factory | Garrison activated, responded to threat 3873 | -7/Factory | Core integrity fell below 50% 3887 | -7/Factory | Core integrity fell below 20% 3910 | -7/Factory | Destroyed by G-47 Trooper with Particle Gun Last Messages --------------- 03864_ M-28 Smith unfolds itself. 03865_ ALERT: Cargo convoy interrupted, initiating access lockdown. 03866_ P-60 Hacker resets I-36 Angel, system corruption cleaned. 03866_ Critical hit (Burn: +37). 03867_ K-01 Serf collects debris. 03868_ Flak Gun destroyed. 03868_ A-27 Freighter calls for garrison support. 03868_ ALERT: Activating Garrison Access F003. 03868_ Critical hit (Burn: +37). 03869_ G-47 Trooper emerges from the garrison. 03869_ P-60 Hacker resets A-27 Freighter, system corruption cleaned. 03870_ Released control of Y-54 Guardian. 03870_ Attempting to rewire Y-54 Guardian. 03870_ Y-54 Guardian is rebooting, system inaccessible. 03872_ Y-54 Guardian reactivates. 03873_ K-01 Serf collects debris. 03874_ U-05 Engineer builds a Wall. 03875_ A-27 Freighter enters garrison. 03877_ K-01 Serf cleans the Garrison Access. 03909_ Slammed into G-47 Trooper. Map ----- +----------------------------------------------------+ | ????????????????????# # #??? | | ????????????????????# # """"""""" #??? | | ????#+##+???????????# # #??? | | ????# ############ # #??? | | ????# " " #??? | | ????# /%"" !#??? | | ??????????# # G #??? | | ??????????# ####""##### "" #??? | | ??????????# #?# ?# " #??? | | ??????????# #?#! / ## ! #??? | | ??????????# #?# ###############??? | | ????????### ###"""" #????????????????? | | ? ""????# #"""" #????????????????? | | ? """"??# !#"""" #????????????????? | | # """ # #"""" #????????????????? | | # + #???? #????????????????? | | # """"" # #???? #????????????????? | | ??""""??# #????? #????????????????? | | ???"????# #????? #????????????????? | | ????????## g ##???????????????????????? | | ?????????# #????????????????????????? | | ?????????# #????????????????????????? | | ????????## ####?????????????????????? | | ????????+ g #?????????????????????? | | ????????## #?????????????????????? | | ?????????# @g#?????????????????????? | | ?????#######+####/#?????????????????????? | | ?????# #?????????????????????? | | ?????# ! #?????????????????????? | | ?????# #?????????????????????? | | ?????# #?????????????????????? | | ?????# #?????????????????????? | | ?????# """ """ #?????????????????????? | | ?????# """ """ #?????????????????????? | | ?????# """ """ #?????????????????????? | | ?????# "" "" #?????????????????????? | | ?????# "" "" #?????????????????????? | | ?????# #?????????????????????? | | ?????# ! #?????????????????????? | | ?????##############?????????????????????? | | ????????????????????????????????????????? | | ????????????????????????????????????????? | | ????????????????????????????????????????? | | ????????????????????????????????????????? | | ????????????????????????????????????????? | | ????????????????????????????????????????? | | ????????????????????????????????????????? | | ????????????????????????????????????????? | | ????????????????????????????????????????? | | ????????????????????????????????????????? | +----------------------------------------------------+ Best States ------------- Heat Dissipation 43 Energy Generation 21 Energy Capacity 240 Matter Stores 100 Matter Capacity 100 Sight Range 18 Robot Scan Range 14 Terrain Scan Density 10 Armor Coverage 150 Resistance: KI 20 Resistance: TH 20 Resistance: EX 70 Resistance: EM 20 Resistance: I 45 Resistance: S 20 Resistance: P 20 Evasion (%) 63 Recoil Reduction 2 Offensive Hacking 10 Item Schematics ----------------- None Robot Schematics ------------------ None Fabricated ------------ Nothing Alien Tech Used ----------------- None Achievements -------------- None Challenges ------------ None Polymind | -11 -10 -9 -9 -9 -7 ---------- Run | Yrd Mat Mat Sto Rec Fac Hosts 8 | 1 1 2 1 1 2 Combat Hostiles 5 | . . 2 1 . 2 Allies . | . . . . . . Unique Host Classes 4 | 1 1 1 . . 1 Average Host Suspicion 83 | 2 45 95 81 85 74 Unsuspicious Activity 91 | 2 6 6 . 2 75 Returns to Shadow . | . . . . . . Fuzzy Dispatches . | . . . . . . Protomatter Created 166 | . . 97 24 . 45 Used 156 | 5 12 46 23 5 65 Decayed 26 | . . . 4 . 22 Highest Spend 51 | 5 12 23 23 5 51 Top 5 Hosts by Kills: Y-45 Defender (-9/Materials: 17) Y-45 Defender (-9/Materials: 16) Y-54 Guardian (-7/Factory: 5) Y-45 Defender (-9/Storage: 4) Game ------ Seed ArmorDataStick Manual? 0 Play Time 00:23:46 Cumulative 100.7 hours Start 2024.05.15 @ 07:20:49 End 2024.05.15 @ 07:48:02 Sessions 1 Manual Loads 0 Difficulty Adventurer Special Mode Winter2022/Polymind Game No. 54 Rogue 20 Adventurer 34 Explorer 0 Win Type - Total 3 Types 2/1/0/0/0/0/0/0/0 Lore% 55 Gallery% 70 Achievement% 63 Wizard Run 0 Options --------- Layout 0 ASCII 0 Keyboard 0 Movement Arrows Keybinds 0 Fullscreen 0 Font 16/SmallcapsGlow Map View 76x50 Zoom Use 0% Tactical HUD 1 Map Filters NONE Filters NONE Steam 1 RUN: fc46173a-b229-43f5-af39-4fad68d3feab